bitfinex-derivatives/quotes_BTCF0:USTF0_20251230
["timestamp","ask_amount","ask_price","bid_price","bid_amount"]
[1767107405417,0.09632,88389.0,88355.0,0.0113312]
[1767107405418,0.0113275,88385.0,88355.0,0.0113312]
[1767107405622,0.0113275,88385.0,88357.0,0.03011588]
[1767107405823,0.00016981,88380.0,88362.0,0.00016981]
[1767107408426,0.00016981,88380.0,88364.0,0.03011588]
[1767107408627,0.0113302,88364.0,88350.0,0.06061997]
[1767107408923,0.0113307,88360.0,88338.0,0.06061997]
[1767107409132,0.09628,88364.0,88335.0,0.11315929]
[1767107409433,0.09628,88363.0,88339.0,0.01131]
[1767107409732,0.00016981,88360.0,88342.0,0.00016981]
[1767107410037,0.00016981,88360.0,88343.0,0.01757739]
[1767107410226,0.00016981,88360.0,88344.0,0.01757739]
[1767107410427,0.00016981,88360.0,88342.0,0.00016981]
[1767107410428,0.0113297,88359.0,88345.0,0.01757739]
[1767107410626,0.00016981,88360.0,88342.0,0.00016981]
[1767107410820,0.011324,88404.0,88345.0,0.04036151]
[1767107410821,0.0113281,88372.0,88345.0,0.04036151]
[1767107411021,0.0113285,88369.0,88347.0,0.04036151]
[1767107411333,0.0113288,88366.0,88349.0,0.04036151]
[1767107411631,0.09632,88374.0,88339.0,0.01131]
[1767107411826,0.0113299,88358.0,88348.0,0.00016981]
[1767107412133,0.00016981,88365.0,88351.0,0.0113307]
[1767107412933,0.06133999,88390.0,88352.0,0.11317594]
[1767107413132,0.011326,88388.0,88361.0,0.0113294]
[1767107413327,0.09632,88389.0,88363.0,0.011329]
[1767107413524,0.06133999,88390.0,88364.0,0.09632]
[1767107413724,0.09632,88394.0,88374.0,0.0113276]
[1767107414032,0.05768,88400.0,88375.0,0.09648981]
[1767107414033,0.00016981,88393.0,88375.0,0.09648981]
[1767107414225,0.00016981,88393.0,88376.0,0.154]
[1767107415023,0.0113255,88392.0,88376.0,0.154]
[1767107415226,0.0113274,88377.0,88375.0,1e-08]
[1767107415421,0.011328,88373.0,88345.0,0.0113314]
[1767107415624,0.107608,88373.0,88345.0,0.0113314]
[1767107415824,0.0113283,88370.0,88343.0,0.11315289]
[1767107416135,0.09628,88373.0,88344.0,0.0113315]
[1767107416329,0.00016971,88367.0,88350.0,0.00016971]
[1767107416637,0.0113292,88363.0,88350.0,0.00016971]
[1767107417520,0.0113295,88360.0,88345.0,0.05768]
[1767107417726,0.01133,88357.0,88345.0,0.05768]
[1767107418019,0.00016971,88367.0,88345.0,0.05768]
[1767107418221,0.0113304,88354.0,88336.0,0.09628]
[1767107418426,0.0113304,88354.0,88338.0,0.00016958]
[1767107419328,0.0113313,88346.0,88338.0,0.00016958]
[1767107419635,0.0113312,88348.0,88326.0,0.05768]
[1767107419829,0.0113306,88352.0,88327.0,0.0113337]
[1767107420029,0.0113304,88353.0,88330.0,0.0113333]
[1767107420230,0.0113304,88353.0,88326.0,0.0690138]
[1767107420443,0.00016981,88348.0,88326.0,0.0690138]
[1767107420730,0.00016981,88348.0,88334.0,0.0113328]
[1767107420929,0.00016981,88348.0,88326.0,0.05768]
[1767107420930,0.09628,88353.0,88340.0,0.0113321]
[1767107421130,0.09628,88353.0,88325.0,0.09628]
[1767107421131,0.09628,88353.0,88334.0,0.05768]
[1767107421324,0.05768,88356.0,88325.0,0.09628]
[1767107421325,0.0113304,88354.0,88325.0,0.1076139]
[1767107421522,0.05768,88356.0,88326.0,0.11319964]
[1767107421925,0.00016981,88350.0,88332.0,0.00016981]
[1767107422134,0.011331,88349.0,88332.0,0.00016981]
[1767107422326,0.0113313,88346.0,88332.0,0.00016981]
[1767107422629,0.09632,88349.0,88332.0,0.00016981]
[1767107422834,0.0113311,88348.0,88332.0,0.00016981]
[1767107423222,0.09632,88349.0,88332.0,0.00016981]
[1767107423426,0.00016981,88350.0,88336.0,0.0113325]
[1767107423739,0.00016981,88350.0,88333.0,0.05768]
[1767107424634,0.1076498,88358.0,88333.0,0.069013]
[1767107424937,0.09632,88358.0,88335.0,0.0113327]
[1767107425137,0.09632,88358.0,88335.0,0.1076527]
[1767107425334,0.09632,88358.0,88338.0,0.0113323]
[1767107425529,0.00016981,88357.0,88338.0,0.0113322]
[1767107425731,0.00016981,88357.0,88335.0,0.1076527]
[1767107426128,0.00016981,88357.0,88336.0,0.11318875]
[1767107426428,0.3192,88378.0,88343.0,0.0113317]
[1767107426633,0.154,88377.0,88344.0,0.05768]
[1767107426824,0.06207964,88384.0,88345.0,0.09632]
[1767107427030,0.09632,88383.0,88354.0,0.0113302]
[1767107427224,0.09632,88383.0,88345.0,0.20949274]
[1767107427225,0.09632,88382.0,88355.0,0.154]
[1767107427534,0.05768,88383.0,88360.0,0.00016981]
[1767107427535,0.09632,88383.0,88360.0,0.00016981]
[1767107427729,0.0113255,88391.0,88365.0,0.0113288]
[1767107427927,0.09632,88392.0,88366.0,0.154]
[1767107428531,0.0113266,88384.0,88366.0,0.154]
[1767107428837,0.00016971,88388.0,88366.0,0.154]
[1767107429831,0.0113261,88387.0,88366.0,0.154]
[1767107430234,0.00016971,88388.0,88366.0,0.154]
[1767107431432,0.06203096,88408.0,88366.0,0.154]
[1767107431628,0.0113249,88397.0,88366.0,0.154]
[1767107431829,0.16935215,88420.0,88367.0,0.17387982]
[1767107432030,0.2408,88417.0,88376.0,0.0113274]
[1767107432229,0.16935215,88410.0,88377.0,0.15396]
[1767107432428,0.16935215,88410.0,88378.0,0.15396]
[1767107432429,0.00016971,88402.0,88378.0,0.15396]
[1767107432630,0.00016971,88402.0,88385.0,0.00016971]
[1767107434336,0.09628,88410.0,88389.0,0.0113258]
[1767107434534,0.011323,88411.0,88389.0,0.05764]
[1767107435235,0.00011273,88409.0,88389.0,0.05764]
[1767107435436,0.09628,88423.0,88390.0,0.17382515]
[1767107435634,0.0689616,88422.0,88394.0,0.07202744]
[1767107435838,0.011322,88419.0,88392.0,0.06070234]
[1767107436134,0.011322,88419.0,88390.0,0.12444841]
[1767107436135,0.0113217,88421.0,88391.0,0.06070234]
[1767107436339,0.0113211,88426.0,88397.0,0.0113247]
[1767107436636,0.0113209,88428.0,88403.0,0.00016971]
[1767107436838,0.0113217,88422.0,88404.0,0.09628]
[1767107437031,0.16935215,88430.0,88405.0,0.05764]
[1767107437032,0.0113213,88425.0,88405.0,0.05764]
[1767107438835,0.0113219,88420.0,88403.0,0.00016971]
[1767107439634,0.16935215,88430.0,88403.0,0.00016971]
[1767107440034,0.0113217,88421.0,88403.0,0.00016971]
[1767107440432,0.16935215,88430.0,88403.0,0.00016971]
[1767107440829,0.0113225,88415.0,88403.0,0.00016971]
[1767107441041,0.05764,88423.0,88403.0,0.00016971]
[1767107441437,0.09628,88428.0,88407.0,0.0113235]
[1767107441645,0.05764,88427.0,88407.0,0.0113235]
[1767107441942,0.0113211,88426.0,88403.0,0.00016971]
[1767107442136,0.05764,88427.0,88406.0,0.0113235]
[1767107442540,0.05764,88427.0,88403.0,0.00016971]
[1767107442744,0.09628,88445.0,88407.0,0.11309978]
[1767107443038,0.0113193,88440.0,88414.0,0.0113225]
[1767107443240,0.011318,88451.0,88420.0,0.16935215]
[1767107443436,0.05764,88459.0,88431.0,0.0113204]
[1767107443634,0.0113175,88454.0,88432.0,0.15392]
[1767107443832,0.09628,88457.0,88432.0,0.15392]
[1767107444043,0.011318,88450.0,88432.0,0.15392]
[1767107444437,0.0113185,88447.0,88432.0,0.15392]
[1767107444836,0.09628,88457.0,88432.0,0.15392]
[1767107445239,0.0113173,88456.0,88432.0,0.15392]
[1767107445432,0.0113176,88454.0,88432.0,0.15392]
[1767107445638,0.0113182,88449.0,88432.0,0.15392]
[1767107445942,0.05764,88454.0,88432.0,0.15392]
[1767107446138,0.09624,88455.0,88432.0,0.15392]
[1767107446339,0.05764,88460.0,88437.0,0.0113196]
[1767107446534,0.16935215,88480.0,88433.0,0.11306717]
[1767107446535,0.0576,88471.0,88440.0,0.0113192]
[1767107446739,0.0113155,88470.0,88445.0,0.00016961]
[1767107446947,0.0113158,88467.0,88445.0,0.09640961]
[1767107447449,0.0113164,88463.0,88445.0,0.09640961]
[1767107447640,0.0112664,88463.0,88445.0,0.09640961]
[1767107447838,0.0113178,88452.0,88445.0,1e-08]
[1767107448941,0.00016926,88457.0,88445.0,1e-08]
[1767107449338,0.09624,88474.0,88446.0,0.15384]
[1767107449537,0.0113124,88494.0,88448.0,0.0113182]
[1767107449738,0.0113127,88492.0,88463.0,0.0113162]
[1767107449936,0.0576,88494.0,88465.0,0.011316]
[1767107450135,0.0576,88494.0,88466.0,0.09624]
[1767107450339,0.0576,88494.0,88471.0,0.00016951]
[1767107450539,0.05755,88494.0,88472.0,0.0576]
[1767107450740,0.0113131,88489.0,88472.0,0.0576]
[1767107451345,0.0113131,88489.0,88472.0,0.05755]
[1767107452555,0.09624,88495.0,88472.0,0.05755]
[1767107452556,0.09624,88495.0,88480.0,0.0113141]
[1767107452850,0.011311,88505.0,88481.0,0.15384]
[1767107453051,0.0576,88508.0,88484.0,0.00016951]
[1767107453444,0.0113102,88511.0,88484.0,0.00016951]
[1767107453640,0.16935215,88520.0,88484.0,0.00016951]
[1767107453641,0.0576,88514.0,88484.0,0.00016951]
[1767107453842,0.0113102,88511.0,88484.0,0.00016951]
[1767107454042,0.0113102,88511.0,88485.0,0.11299754]
[1767107454241,0.0576,88514.0,88486.0,0.0113133]
[1767107454546,0.0113114,88502.0,88485.0,0.0113]
[1767107454746,0.16935215,88510.0,88486.0,0.0576]
[1767107455051,0.16935215,88510.0,88485.0,0.0113]
[1767107455352,0.16935215,88500.0,88479.0,0.0576]
[1767107455540,0.22695215,88500.0,88479.0,0.0576]
[1767107455741,0.18066505,88490.0,88473.0,0.05704]
[1767107455943,0.0113133,88487.0,88473.0,0.05704]
[1767107456341,0.0113133,88487.0,88472.0,0.0576]
[1767107459345,0.011314,88482.0,88456.0,0.0113172]
[1767107459548,0.011314,88482.0,88459.0,0.0113168]
[1767107459749,0.00016951,88479.0,88462.0,0.00016951]
[1767107460549,0.0113121,88497.0,88470.0,0.0113153]
[1767107460750,0.0113119,88498.0,88471.0,0.15376]
[1767107460941,0.0113119,88498.0,88472.0,0.0962]
[1767107461142,0.0962,88511.0,88472.0,0.20923202]
[1767107461453,0.00016918,88500.0,88483.0,0.00016951]
[1767107461646,0.0113117,88499.0,88477.0,0.05756]
[1767107462047,0.16952133,88500.0,88470.0,0.1130052]
[1767107462247,0.16935215,88490.0,88463.0,0.0962]
[1767107462448,0.0113143,88479.0,88463.0,0.0962]
[1767107462648,0.0113143,88479.0,88463.0,0.09615]
[1767107462844,0.16952166,88480.0,88463.0,0.09615]
[1767107463045,0.00016951,88480.0,88463.0,0.09615]
[1767107463250,0.0113144,88479.0,88463.0,0.09615]
[1767107463554,0.00016951,88480.0,88463.0,0.09615]
[1767107464256,1e-08,88480.0,88463.0,0.09615]
[1767107464555,1e-08,88480.0,88462.0,0.00016951]
[1767107464744,1e-08,88480.0,88440.0,0.05989195]
[1767107464745,0.011315,88474.0,88451.0,0.05756]
[1767107464947,0.011315,88474.0,88450.0,0.05756]
[1767107465147,0.16935215,88470.0,88444.0,0.0113186]
[1767107465346,0.16935215,88470.0,88421.0,0.07985344]
[1767107465347,0.0113161,88465.0,88443.0,0.09616]
[1767107465555,0.0113156,88469.0,88443.0,0.05756]
[1767107465752,0.06241935,88491.0,88447.0,0.00016951]
[1767107465952,0.3192,88508.0,88443.0,0.05756]
[1767107465953,0.32307215,88490.0,88443.0,0.05756]
[1767107466154,0.0113135,88485.0,88455.0,0.0113173]
[1767107466355,0.0113135,88485.0,88457.0,0.011317]
[1767107466554,0.1074731,88489.0,88456.0,0.05756]
[1767107466755,0.09616,88489.0,88461.0,0.0113165]
[1767107466950,0.00016919,88481.0,88464.0,0.00016951]
[1767107467152,0.16935215,88474.0,88443.0,0.04019646]
[1767107467460,0.1074751,88473.0,88446.0,0.0113184]
[1767107467655,0.1074751,88473.0,88447.0,0.09616]
[1767107468162,0.00016951,88469.0,88451.0,0.00016951]
[1767107469253,0.0113158,88468.0,88451.0,0.00016951]
[1767107469663,0.0113162,88464.0,88449.0,0.03012022]
[1767107469854,0.0113162,88464.0,88445.0,0.03012022]
[1767107470159,0.0113157,88468.0,88447.0,0.03012022]
[1767107470464,0.0113161,88465.0,88447.0,0.03012022]
[1767107470759,0.0113161,88465.0,88447.0,0.03028973]
[1767107471065,0.0113181,88450.0,88433.0,0.04019646]
[1767107471255,0.16935215,88450.0,88430.0,0.04019646]
[1767107471456,0.011318,88451.0,88430.0,0.04019646]
[1767107471656,0.011318,88451.0,88427.0,0.13639646]
[1767107471856,0.011318,88451.0,88428.0,0.04019646]
[1767107472061,0.05756,88454.0,88427.0,0.0962]
[1767107472062,0.0113187,88445.0,88427.0,0.0962]
[1767107472361,0.0113188,88444.0,88427.0,0.00016961]
[1767107472562,0.00016961,88445.0,88427.0,0.00016961]
[1767107472960,0.011319,88442.0,88427.0,0.00016961]
[1767107473158,0.00016961,88445.0,88427.0,0.00016961]
[1767107474763,0.00016961,88445.0,88428.0,0.0113207]
[1767107475058,0.00016961,88445.0,88433.0,0.0113201]
[1767107475263,0.15376,88456.0,88433.0,0.0113201]
[1767107475665,0.0962,88464.0,88443.0,0.0113188]
[1767107475864,0.0962,88467.0,88442.0,0.15376]
[1767107476058,0.0113152,88472.0,88445.0,0.0113185]
[1767107476257,0.00016961,88467.0,88450.0,0.00016961]
[1767107477268,0.00016961,88467.0,88453.0,0.0113175]
[1767107477567,0.0962,88481.0,88454.0,0.15376]
[1767107477775,0.0962,88481.0,88457.0,0.011317]
[1767107477966,0.05756,88487.0,88455.0,0.04019646]
[1767107478159,0.05756,88487.0,88457.0,0.0113171]
[1767107478361,0.15376,88495.0,88457.0,0.0113171]
[1767107478556,0.00016961,88481.0,88467.0,0.00016961]
[1767107478957,0.00016961,88481.0,88468.0,0.0113157]
[1767107479156,0.15376,88495.0,88467.0,0.00016961]
[1767107480065,0.00016922,88490.0,88467.0,0.00016961]
[1767107480259,0.0113134,88487.0,88467.0,0.00016961]
[1767107480461,0.00016922,88490.0,88467.0,0.00016961]
[1767107480862,0.16952137,88490.0,88467.0,0.00016961]
[1767107481263,0.0113141,88481.0,88467.0,0.00016961]
[1767107481568,0.0113147,88476.0,88467.0,0.00016961]
[1767107481768,0.0962,88475.0,88451.0,0.0962]
[1767107481960,0.16935215,88470.0,88451.0,0.0962]
[1767107482163,0.15376,88474.0,88452.0,0.0113177]
[1767107482364,0.0113159,88467.0,88451.0,0.0962]
[1767107482567,0.0113159,88467.0,88447.0,0.05756]
[1767107482766,0.00016961,88466.0,88448.0,0.00016961]
[1767107482966,0.00016961,88466.0,88448.0,0.01148781]
[1767107483767,0.00016961,88466.0,88448.0,0.00016961]
[1767107484362,0.00016961,88466.0,88450.0,0.0113179]
[1767107484564,0.00016961,88466.0,88448.0,0.00016961]
[1767107484761,0.01148561,88466.0,88448.0,0.00016961]
[1767107484971,0.00016961,88466.0,88448.0,0.00016961]
[1767107485174,0.0113163,88464.0,88448.0,0.00016961]
[1767107485474,0.0113176,88454.0,88448.0,1e-08]
[1767107485673,0.05756,88463.0,88448.0,1e-08]
[1767107486380,0.0113172,88457.0,88448.0,1e-08]
[1767107486566,0.011317,88459.0,88448.0,1e-08]
[1767107486874,0.05756,88463.0,88448.0,1e-08]
[1767107487074,0.0113165,88462.0,88448.0,1e-08]
[1767107487276,0.0113168,88460.0,88448.0,1e-08]
[1767107487973,0.0113171,88458.0,88448.0,1e-08]
[1767107488474,0.00016961,88466.0,88448.0,1e-08]
[1767107488978,0.00016961,88466.0,88449.0,0.15376]
[1767107489361,0.0113149,88474.0,88449.0,0.15376]
[1767107489562,0.0113153,88472.0,88449.0,0.15376]
[1767107490170,0.0113156,88469.0,88449.0,0.15376]
[1767107490371,0.00016961,88468.0,88448.0,1e-08]
[1767107490574,0.00016961,88468.0,88449.0,0.15376]
[1767107490768,0.00016961,88468.0,88450.0,0.15376]
[1767107491370,0.00016961,88468.0,88449.0,0.05756]
[1767107492074,0.0113162,88464.0,88448.0,0.04019647]
[1767107492274,0.0113177,88453.0,88444.0,7e-08]
[1767107492481,0.00016961,88468.0,88438.0,0.05752]
[1767107492482,0.15372,88464.0,88438.0,0.05752]
[1767107492982,0.0113174,88455.0,88438.0,0.05752]
[1767107493283,0.15372,88464.0,88435.0,0.05752]
[1767107493481,0.0113175,88454.0,88441.0,0.00016961]
[1767107493883,0.0962,88453.0,88425.0,0.0962]
[1767107494077,0.01132,88435.0,88425.0,0.0962]
[1767107494276,0.0113194,88439.0,88419.0,0.05752]
[1767107494877,0.00016961,88438.0,88420.0,0.00016961]
[1767107495277,0.0113197,88437.0,88412.0,0.0604679]
[1767107495480,0.00016961,88438.0,88410.0,0.05752]
[1767107495679,0.0113203,88433.0,88410.0,0.05752]
[1767107495880,0.0113203,88433.0,88408.0,0.0114038]
[1767107496086,0.0113203,88433.0,88411.0,0.05752]
[1767107496272,0.0113197,88437.0,88413.0,0.00016961]
[1767107496979,0.0113201,88434.0,88413.0,0.00016961]
[1767107497179,0.0113203,88432.0,88413.0,0.00016961]
[1767107497981,0.0113198,88436.0,88413.0,0.00016961]
[1767107498176,0.00016961,88438.0,88417.0,0.0113221]
[1767107498373,0.00016961,88438.0,88419.0,0.0113219]
[1767107498573,0.00016961,88438.0,88420.0,0.15372]
[1767107498885,0.00016961,88438.0,88421.0,0.0113217]
[1767107499075,0.00016961,88438.0,88421.0,0.11308507]
[1767107499272,0.0113183,88448.0,88422.0,0.0688416]
[1767107499485,0.0113187,88445.0,88423.0,0.0962]
[1767107499882,0.0113187,88445.0,88424.0,0.05752]
[1767107500084,0.0113187,88445.0,88424.0,0.15372]
[1767107500289,0.00016961,88443.0,88424.0,0.15372]
[1767107501386,0.00016961,88443.0,88425.0,0.15372]
[1767107502682,0.00016961,88443.0,88426.0,0.15376]
[1767107503083,0.00016961,88443.0,88419.0,0.0113219]
[1767107503290,0.00016961,88443.0,88420.0,0.05752]
[1767107503491,0.00016961,88443.0,88420.0,0.15372]
[1767107503688,0.00016961,88443.0,88416.0,0.0604679]
[1767107503887,0.0113205,88431.0,88417.0,0.05752]
[1767107504191,0.0113208,88428.0,88417.0,0.05752]
[1767107504885,0.0113202,88433.0,88417.0,0.05752]
[1767107505378,0.0113205,88431.0,88417.0,0.05752]
[1767107505789,0.01132,88435.0,88417.0,0.05752]
[1767107505988,0.0113203,88433.0,88417.0,0.05752]
[1767107506187,0.0113205,88431.0,88417.0,0.05752]
[1767107506485,0.0962,88442.0,88413.0,0.00016961]
[1767107506686,0.0962,88442.0,88408.0,6e-07]
[1767107506888,0.0113206,88430.0,88408.0,6e-07]
[1767107507186,0.0113225,88415.0,88408.0,6e-07]
[1767107507387,0.0113229,88412.0,88408.0,6e-07]
[1767107507583,0.0113229,88412.0,88398.0,0.05752]
[1767107507791,0.0113232,88409.0,88396.0,0.00016961]
[1767107508094,0.0113228,88413.0,88396.0,0.00016961]
[1767107508485,8.297e-05,88412.0,88396.0,0.00016961]
[1767107508694,0.0962,88426.0,88396.0,0.00016961]
[1767107508994,0.0113212,88425.0,88396.0,0.00016961]
[1767107509287,0.0113216,88422.0,88401.0,0.0113242]
[1767107509697,0.00016961,88420.0,88401.0,0.0113242]
[1767107509888,0.00016961,88420.0,88396.0,0.00016961]
[1767107510191,0.0113204,88432.0,88405.0,0.0113236]
[1767107510493,0.0113204,88432.0,88406.0,0.15372]
[1767107510790,0.0962,88433.0,88406.0,0.15372]
[1767107510791,0.0113205,88431.0,88406.0,0.15372]
[1767107511089,0.00016961,88427.0,88406.0,0.15372]
[1767107512488,0.0113219,88420.0,88396.0,0.01149441]
[1767107512697,0.0113219,88420.0,88396.0,0.00016961]
[1767107512897,0.0113219,88420.0,88397.0,0.15376]
[1767107513089,0.0113221,88418.0,88398.0,0.15376]
[1767107513486,0.00016961,88427.0,88398.0,0.15376]
[1767107513887,0.0113211,88426.0,88402.0,0.011324]
[1767107514192,0.011319,88443.0,88400.0,0.0113243]
[1767107514392,0.011319,88443.0,88418.0,0.011322]
[1767107514589,0.1075578,88452.0,88426.0,0.011321]
[1767107514894,0.1075578,88452.0,88427.0,0.09624]
[1767107515094,0.011318,88450.0,88428.0,0.05752]
[1767107515299,0.0113184,88447.0,88430.0,0.00016961]
[1767107515893,0.00016922,88448.0,88430.0,0.00016961]
[1767107516095,0.011318,88450.0,88430.0,0.00016961]
[1767107516296,0.0113179,88451.0,88430.0,0.00016961]
[1767107516797,0.0113185,88446.0,88431.0,0.15376]
[1767107516991,0.011318,88450.0,88431.0,0.15376]
[1767107517585,0.011318,88450.0,88430.0,0.00016961]
[1767107517891,0.0113171,88457.0,88430.0,1e-08]
[1767107518094,0.056586,88457.0,88408.0,0.0604679]
[1767107518283,0.0113171,88458.0,88403.0,0.1179879]
[1767107518599,0.0113206,88430.0,88406.0,0.0113236]
[1767107518794,0.0113171,88458.0,88403.0,0.1293119]
[1767107518795,0.0113211,88426.0,88403.0,0.1293119]
[1767107518989,0.0113214,88424.0,88402.0,0.0604679]
[1767107519194,0.0113216,88422.0,88406.0,0.00016961]
[1767107519388,0.01149111,88423.0,88406.0,0.00016961]
[1767107519594,0.0113224,88416.0,88406.0,0.00016961]
[1767107519894,0.0113228,88413.0,88396.0,0.09624]
[1767107520092,0.0113231,88410.0,88394.0,0.05752]
[1767107520394,0.0113235,88407.0,88392.0,0.05752]
[1767107520595,0.0112735,88407.0,88385.0,0.0604679]
[1767107520795,0.0113231,88411.0,88386.0,0.15376]
[1767107520988,0.00016961,88405.0,88391.0,0.0113255]
[1767107521191,0.09624,88416.0,88392.0,0.15376]
[1767107521387,0.09624,88416.0,88393.0,0.0113252]
[1767107521594,0.0113209,88428.0,88402.0,0.011324]
[1767107521794,0.0113209,88428.0,88403.0,0.15376]
[1767107522203,0.00016961,88424.0,88407.0,0.00016961]
[1767107523204,0.00016961,88424.0,88408.0,0.05752]
[1767107523406,0.00016961,88424.0,88408.0,0.15376]
[1767107523906,0.00016961,88424.0,88409.0,0.05752]
[1767107524106,0.0113215,88423.0,88409.0,0.05752]
[1767107524906,0.00016961,88424.0,88409.0,0.05752]
[1767107525303,0.00016961,88424.0,88410.0,0.011323]
[1767107525696,0.01149091,88424.0,88409.0,0.05752]
[1767107525896,0.01149091,88424.0,88401.0,2e-08]
[1767107525897,0.05752,88423.0,88401.0,2e-08]
[1767107526106,0.05752,88423.0,88388.0,0.09624]
[1767107526107,0.0113227,88414.0,88388.0,0.09624]
[1767107526307,0.0113227,88414.0,88388.0,0.1075658]
[1767107526308,0.011323,88412.0,88388.0,0.1075658]
[1767107526510,0.0113228,88413.0,88388.0,0.09624]
[1767107526708,0.09624,88414.0,88389.0,0.0113258]
[1767107527008,0.011323,88412.0,88393.0,0.00016961]
[1767107527210,0.0113233,88409.0,88393.0,0.00016961]
[1767107527408,0.0113231,88411.0,88393.0,0.00016961]
[1767107527607,0.09624,88414.0,88393.0,0.00016961]
[1767107527810,0.09624,88414.0,88394.0,0.05752]
[1767107528108,0.00016961,88424.0,88397.0,0.0113248]
[1767107528302,0.00016961,88424.0,88398.0,0.09624]
[1767107528905,0.00016961,88424.0,88400.0,0.0113244]
[1767107529295,0.0113209,88427.0,88398.0,0.09624]
[1767107529505,0.09624,88435.0,88399.0,0.15376]
[1767107529704,0.0113204,88432.0,88405.0,0.0113237]
[1767107530103,0.0113204,88432.0,88406.0,0.05752]
[1767107530304,0.00016961,88428.0,88410.0,0.00016961]
[1767107530508,0.00016961,88428.0,88411.0,0.107563]
[1767107530712,0.09624,88435.0,88413.0,0.0113226]
[1767107530907,0.09624,88435.0,88415.0,0.0113225]
[1767107531110,0.09624,88442.0,88415.0,0.0113225]
[1767107531306,0.0113195,88438.0,88414.0,0.05752]
[1767107531613,0.09624,88442.0,88416.0,0.0113222]
[1767107531814,0.0113192,88441.0,88414.0,0.05752]
[1767107532297,0.09624,88442.0,88415.0,0.0113224]
[1767107532298,0.1075591,88442.0,88415.0,0.0113224]
[1767107532705,0.09624,88449.0,88423.0,0.0113214]
[1767107532905,0.09624,88454.0,88427.0,0.00016961]
[1767107533111,0.0113184,88447.0,88428.0,0.09624]
[1767107533411,0.09624,88453.0,88428.0,0.09624]
[1767107534910,0.0113179,88451.0,88427.0,0.00016961]
[1767107535214,0.09624,88453.0,88427.0,0.00016961]
[1767107535412,0.0113199,88436.0,88427.0,0.00016961]
[1767107535599,0.0113196,88438.0,88427.0,0.00016961]
[1767107535908,0.011319,88443.0,88427.0,0.00016961]
[1767107536116,0.0688385,88447.0,88427.0,0.00016961]
[1767107536306,0.0688385,88447.0,88427.0,0.01149051]
[1767107536307,0.05752,88447.0,88427.0,0.01149051]
[1767107536706,0.05752,88447.0,88427.0,0.00016961]
[1767107536906,0.0113182,88449.0,88427.0,0.00016961]
[1767107537313,0.09624,88453.0,88427.0,0.00016961]
[1767107538103,0.09624,88461.0,88434.0,0.0113199]
[1767107538306,0.09624,88461.0,88439.0,0.0113193]
[1767107538507,0.09624,88461.0,88440.0,0.05752]
[1767107539013,0.011316,88466.0,88441.0,0.05752]
[1767107539208,0.05752,88468.0,88445.0,0.00016961]
[1767107540116,0.05752,88468.0,88447.0,0.0113183]
[1767107540318,0.09624,88473.0,88450.0,0.011318]
[1767107540502,0.09624,88473.0,88451.0,0.05752]
[1767107541213,0.0113162,88465.0,88445.0,0.00016961]
[1767107541410,0.0113162,88465.0,88446.0,0.15372]
[1767107541718,0.09624,88473.0,88447.0,0.15372]
[1767107541719,0.0113166,88461.0,88447.0,0.15372]
[1767107542307,0.0112666,88461.0,88447.0,0.15372]
[1767107542707,0.09624,88473.0,88445.0,0.00016961]
[1767107543714,0.011317,88459.0,88445.0,0.00016961]
[1767107543913,0.0113172,88457.0,88445.0,0.00016961]
[1767107544109,0.0113181,88450.0,88428.0,0.0717886]
[1767107544318,0.0962,88463.0,88429.0,0.15372]
[1767107544520,0.0962,88463.0,88430.0,0.15372]
[1767107545013,0.0113178,88452.0,88430.0,0.15372]
[1767107545213,0.00016961,88450.0,88432.0,0.00016961]
[1767107545718,0.00016961,88450.0,88433.0,0.0113201]
[1767107545916,0.0113155,88470.0,88432.0,0.00016961]
[1767107545917,0.0113159,88467.0,88432.0,0.00016961]
[1767107546220,0.0113157,88469.0,88445.0,0.0113185]
[1767107546413,0.0113157,88469.0,88446.0,0.15368]
[1767107546719,0.0113159,88467.0,88446.0,0.15368]
[1767107547112,0.011316,88466.0,88448.0,0.00016961]
[1767107548416,0.0113156,88469.0,88448.0,0.00016961]
[1767107548610,0.164995,88474.0,88449.0,0.0113181]
[1767107549011,0.164995,88474.0,88451.0,0.0113178]
[1767107549617,0.0113155,88470.0,88448.0,0.00016961]
[1767107549922,0.15368,88474.0,88448.0,0.00016961]
[1767107550511,0.0113151,88473.0,88449.0,0.011318]
[1767107550712,0.15368,88474.0,88451.0,0.0113178]
[1767107550909,0.164995,88474.0,88451.0,0.0113178]
[1767107551318,0.15368,88474.0,88451.0,0.0113178]
[1767107551617,0.15368,88474.0,88454.0,0.0113173]
[1767107551820,0.15368,88474.0,88455.0,0.05748]
[1767107552021,0.0113143,88480.0,88458.0,0.0113169]
[1767107552322,0.0687943,88480.0,88460.0,0.00016961]
[1767107553116,0.05748,88480.0,88460.0,1e-08]
[1767107553317,0.0113181,88450.0,88429.0,0.0604679]
[1767107553516,0.0113183,88448.0,88427.0,0.05748]
[1767107553727,0.0113187,88445.0,88427.0,0.05748]
[1767107554328,0.00016961,88445.0,88427.0,0.05764961]
[1767107555226,0.0113182,88449.0,88427.0,0.05764961]
[1767107555424,0.06112474,88480.0,88430.0,0.16898726]
[1767107555425,0.02468,88463.0,88430.0,0.16898726]
[1767107555619,0.12088,88462.0,88440.0,0.0113192]
[1767107555819,0.12088,88462.0,88441.0,0.05748]
[1767107555820,0.02468,88462.0,88441.0,0.05748]
[1767107556016,0.02468,88462.0,88438.0,0.1075194]
[1767107556017,0.0113169,88459.0,88438.0,0.05748]
[1767107556222,0.0113172,88457.0,88438.0,0.05748]
[1767107556418,0.0113172,88457.0,88419.0,0.0113219]
[1767107556419,0.0607909,88509.0,88440.0,0.00016961]
[1767107556617,0.13746389,88522.0,88450.0,0.16898726]
[1767107556618,0.0113132,88488.0,88450.0,0.16898726]
[1767107556822,0.0962,88489.0,88460.0,0.00016961]
[1767107557329,0.0962,88489.0,88467.0,0.0113157]
[1767107557718,0.0113129,88490.0,88467.0,0.0113157]
[1767107558026,0.15368,88489.0,88460.0,0.05764961]
[1767107558229,0.15368,88489.0,88460.0,0.00016961]
[1767107558230,0.0962,88488.0,88460.0,0.00016961]
[1767107558430,0.0962,88488.0,88426.0,0.09211326]
[1767107558431,0.0113159,88467.0,88442.0,0.0962]
[1767107558733,0.0962,88488.0,88463.0,0.0113163]
[1767107558734,0.05748,88486.0,88463.0,0.0113163]
[1767107558930,0.05748,88486.0,88452.0,0.05748]
[1767107559232,0.0113138,88483.0,88458.0,0.0113169]
[1767107559433,0.00016961,88479.0,88462.0,0.00016961]